Cogmind - Beta 15 *** ADVENTURER MODE // 2025.06.19 @ 18:46:09 Player: Pitter Result: Destroyed by 5I-A8S(R) with Subdweller Laser Performance ------------- Evolutions (0) 0 Regions Visited (2) 400 Robots Destroyed (34) 170 Value Destroyed (755) 755 Prototype IDs (11) 220 Alien Tech Used (0) 0 Bonus (0) 0 TOTAL SCORE: 1545 Bonus ------- None Cogmind --------- Core Integrity 0/250 Matter 283/300 Energy 125/125 System Corruption 0% Temperature Cool (6) Movement Treading (160) Location -10/Subcaves Parts ------- > --- POWER (1) -------- Light Ion Engine > --- PROPULSION (2) --- Improved Treads Improved Treads > --- UTILITY (2) ------ Small Storage Unit > --- WEAPON (2) ------- Heavy Assault Rifle > --- INVENTORY (8) ---- Light Ion Engine Structural Scanner Terrain Scanner ECM Suite Grenade Launcher Peak State ------------ > --- POWER ------------ Ion Engine > --- PROPULSION ------- Improved Treads Improved Treads > --- UTILITY ---------- Small Storage Unit Light Armor Plating > --- WEAPON ----------- Heavy Assault Rifle Heavy Assault Rifle > --- INVENTORY -------- Light Ion Engine Light Ion Engine Improved Treads Improved Treads Structural Scanner Terrain Scanner ECM Suite Grenade Launcher [Rating: 12] Favorites ----------- Power Ion Engine Engine Ion Engine Propulsion Improved Treads Treads Improved Treads Utility Small Storage Unit Storage Small Storage Unit Processor Targeting Computer Protection Light Armor Plating Weapon Heavy Assault Rifle Energy Gun Particle Gun Ballistic Gun Heavy Assault Rifle Launcher Grenade Launcher Build | -11 -10 -10 ------- Run | Yrd Mat Sub Slots Evolved . | . . . Power . | . . . Propulsion . | . . . Utility . | . . . Weapon . | . . . Parts Attached 21 | 6 11 4 Power 3 | 1 1 1 Engine 3 | 1 1 1 Core . | . . . Reactor . | . . . Propulsion 8 | 2 4 2 Treads 8 | 2 4 2 Leg . | . . . Wheel . | . . . Hover . | . . . Flight . | . . . Utility 3 | 1 2 . Device . | . . . Storage 1 | 1 . . Processor 1 | . 1 . Hackware . | . . . Protection 1 | . 1 . Artifact . | . . . Weapon 7 | 2 4 1 Energy Gun 2 | 1 1 . Energy Cannon . | . . . Ballistic Gun 4 | 1 2 1 Ballistic Cannon . | . . . Launcher 1 | . 1 . Special Weapon . | . . . Impact Weapon . | . . . Slashing Weapon . | . . . Piercing Weapon . | . . . Special Melee Weapon . | . . . Unidentified Prototypes . | . . . Parts Lost 2 | . . 2 Power . | . . . Propulsion . | . . . Utility 1 | . . 1 Weapon 1 | . . 1 Highest Loss Streak 1 | . . 1 To Critical Strikes . | . . . Average Backups 7 | 5 7 7 Power 1 | . 2 1 Propulsion 2 | 3 2 1 Utility 2 | . 1 3 Weapon . | . . 1 Tool/Special . | . . . Unused Backups 12 | 1 7 4 Power 2 | . 1 1 Propulsion 5 | 1 4 . Utility 4 | . 1 3 Weapon 1 | . 1 . Tool/Special . | . . . Average Slot Usage (%) 98 | . 99 98 Engine 14 | . 14 14 Treads 28 | . 28 28 Storage 14 | . 14 14 Protection 12 | . 12 12 Energy Gun 1 | . 3 . Ballistic Gun 21 | . 21 22 Launcher 4 | . 3 5 Peak Build Rating 12 | 6 11 12 Average Rating 9 | 5 8 11 On Entrance 5 | . 6 11 Naked Turns . | . . . Heaviest Build 19 | 14 19 19 Greatest Support 46 | 40 46 46 Greatest Overweight (x) . | . . . Average Overweight (x) . | . . . Largest Inventory Capacity 8 | 8 8 8 Average Capacity 7 | 7 8 8 Most Carried 8 | 7 8 8 Average Carried 7 | 5 7 7 Final Capacity 8 | 8 8 8 Final Carried 8 | 6 8 5 Class Distribution -------------------- 100% | Mutant Dominant Class ---------------- Mutant | -10/Materials Mutant | -10/Subcaves Resources | -11 -10 -10 ----------- Run | Yrd Mat Sub Matter Collected 1111 | 275 323 513 Remotely . | . . . Salvage Created 1184 | 54 766 364 Parts 62 | 1 38 23 Haulers Intercepted 1 | . 1 . Recyclers Shooed 2 | . 2 . Parts Field Recycled . | . . . Retrieved Matter . | . . . Parts Self-Destructed 22 | . . 22 Prevented . | . . . Kills | -11 -10 -10 ------- Run | Yrd Mat Sub Combat Hostiles Destroyed 23 | . 14 9 Guns 23 | . 14 9 Classes Destroyed 8 | 1 5 2 Builder 1 | . 1 . Hauler 1 | . 1 . Recycler 4 | 1 3 . Turret 2 | . . 2 Watcher 3 | . 3 . Swarmer 9 | . 5 4 Grunt 10 | . 9 1 Subdweller 4 | . . 4 Best Kill Streak 7 | 1 7 5 Combat Bots Only 4 | . 3 4 Max Kills in Single Turn 1 | 1 1 1 Gunslinging . | . . . Exploded . | . . . Melee . | . . . Uniques/NPCs Destroyed . | . . . Combat | -11 -10 -10 -------- Run | Yrd Mat Sub Hostile Shots Fired 177 | . 63 114 Missed 62 | . 20 42 Hits 115 | . 43 72 Projectile 115 | . 43 72 AOE 1 | . . 1 Damage Taken 1272 | . 372 900 Core 260 | . 68 192 Absorbed by Shields . | . . . Ignored by Resistances 377 | . 112 265 Regen/Repaired (Parts) 58 | . 58 . Core Remaining (%) 100 | 100 . . Volleys Fired 135 | 5 64 66 Largest 2 | 2 2 2 Hottest 85 | 70 85 46 Shots Fired 239 | 10 125 104 Gun 224 | 10 125 89 Cannon . | . . . Launcher 15 | . . 15 Special . | . . . Kinetic 204 | 5 110 89 Thermal 20 | 5 15 . Explosive 15 | . . 15 Electromagnetic . | . . . Robot Hit Streak 33 | 5 23 33 Robot Miss Streak 3 | 1 3 1 Penetration Max . | . . . Secondary Targets 2 | . 2 . Max Gunslinging Chain 1 | . 1 . Shots Hit Robots 182 | 8 99 75 Core Hits 59 | 2 40 17 Critical Kills . | . . . Critical Parts Destroyed . | . . . Critical Strikes . | . . . Melee Attacks . | . . . Impact . | . . . Slashing . | . . . Piercing . | . . . Sneak Attacks . | . . . Combat Hostiles . | . . . Follow-up Attacks . | . . . Damage Inflicted 1956 | 103 1149 704 Guns 1956 | 103 1149 704 Cannons . | . . . Explosions . | . . . Melee . | . . . Ramming . | . . . Kinetic 1689 | 40 945 704 Thermal 267 | 63 204 . Explosive . | . . . Electromagnetic . | . . . Impact . | . . . Slashing . | . . . Piercing . | . . . Highest Corruption . | . . . Average Corruption . | . . . Corruption Purged . | . . . Corruption Blocked . | . . . Overload Shots . | . . . Overflow Damage . | . . . Projectiles . | . . . Explosions . | . . . Melee . | . . . Knockbacks . | . . . Impact . | . . . Kinetic . | . . . Secondary . | . . . Self-Inflicted Damage 79 | . . 79 Shots 6 | . . 6 Rammed . | . . . Targets Rammed . | . . . Kicked . | . . . Crushed . | . . . Highest Temperature 268 | 36 268 . Average Temperature 47 | 16 50 . Received Heat Transfer 588 | . 204 384 Siege Activations . | . . . Martial Activations . | . . . Shielding Activations . | . . . Robots Disrupted . | . . . Combat Hostiles . | . . . Robots Corrupted . | . . . Combat Hostiles . | . . . Parts Fried . | . . . Impact Corruptions . | . . . Robots Melted . | . . . Combat Hostiles . | . . . Parts Melted 1 | . . 1 Heat Transferred 666 | 185 481 . Parts Sabotaged . | . . . Parts Stolen . | . . . Parts Stripped . | . . . Power Chain Reactions . | . . . Alert | -11 -10 -10 ------- Run | Yrd Mat Sub Maximum Alert Level . | . . . Low Security (%) 100 | 100 100 . Level 1 . | . . . Level 2 . | . . . Level 3 . | . . . Level 4 . | . . . Level 5 . | . . . High Security . | . . . Max Security . | . . . Peak Influence 100 | 5 100 . Initial . | . . . Average 12 | . 15 . Influence Increases 615 | 5 425 185 Destroy 0b10 Robot/C 420 | . 280 140 Destroy 0b10 Robot/NC 45 | 5 40 . Destroy Leader 68 | . 68 . Successful Hack 7 | . 7 . Lose Combat Pursuer 75 | . 30 45 Influence Decreases 615 | 5 425 185 Time Decay 538 | 5 358 175 Lost Part 10 | . . 10 Purge Threat 67 | . 67 . Squads Dispatched 2 | . 2 . Investigation 2 | . 2 . Extermination . | . . . Reinforcement . | . . . Assault . | . . . Garrison . | . . . Intercept . | . . . Searches Triggered . | . . . Construction Impeded . | . . . Haulers Reinforced . | . . . Active Scanning Responses . | . . . Cargo Convoy Interrupts . | . . . Stealth | -11 -10 -10 --------- Run | Yrd Mat Sub Distress Signals 3 | . 3 . Communications Jammed . | . . . Distress Signals . | . . . Times Spotted 34 | . 21 13 Peak Tracking Total 4 | . 3 4 Tactical Retreats 4 | . 2 2 Traps | -11 -10 -10 ------- Run | Yrd Mat Sub Traps Triggered 3 | . 2 1 Indirectly . | . . . Trap Hack Attempts . | . . . Triggered . | . . . Disarmed . | . . . Reprogrammed . | . . . Reused . | . . . Traps Extracted . | . . . Installed . | . . . Triggered . | . . . Machines | -11 -10 -10 ---------- Run | Yrd Mat Sub Machines Disabled 2 | . . 2 Max in Single Turn 1 | . . 1 Machines Repaired . | . . . Machines Dismantled . | . . . Machines Sabotaged . | . . . Overloaded Fab Kills . | . . . Hacking | -11 -10 -10 --------- Run | Yrd Mat Sub Machines Accessed 7 | . 6 1 Terminals 5 | . 5 . Fabricators . | . . . Repair Stations 1 | . 1 . Recycling Units . | . . . Scanalyzers . | . . . Garrison Access . | . . . Total Hacks 23 | . 14 9 Successful 17 | . 8 9 Failed 6 | . 6 . Catastrophic . | . . . Database Lockouts . | . . . Manual 1 | . 1 . Terminals 12 | . 12 . Fabricators . | . . . Repair Stations 2 | . 2 . Recycling Units . | . . . Scanalyzers . | . . . Garrison Access . | . . . Terminal Hacks 15 | . 6 9 Record 11 | . 3 8 Unreport Threat 1 | . 1 . Locate Traps 1 | . 1 . Zone Layout 1 | . 1 . Proto ID Catalog 1 | . . 1 Fabricator Hacks . | . . . Repair Station Hacks 2 | . 2 . Scan Component 1 | . 1 . Repair 1 | . 1 . Recycling Unit Hacks . | . . . Scanalyzer . | . . . Garrison Access Hacks . | . . . Unauthorized Hacks . | . . . Terminals . | . . . Fabricators . | . . . Repair Stations . | . . . Recycling Units . | . . . Scanalyzers . | . . . Garrison Access . | . . . Data Cores Recovered . | . . . Used . | . . . Hacking Detections 3 | . 3 . Full Trace Events 1 | . 1 . Feedback Events . | . . . Feedback Blocked . | . . . Robot Schematics Acquired . | . . . Robots Built . | . . . Authchips . | . . . Time . | . . . Total Robot Build Rating . | . . . Part Schematics Acquired . | . . . Parts Built . | . . . Authchips . | . . . Time . | . . . Total Part Build Rating . | . . . Parts Repaired 1 | . 1 . Time 26 | . 26 . Parts Recycled . | . . . Recycled Matter . | . . . Retrieved Matter . | . . . Retrieved Components . | . . . Parts Scanalyzed . | . . . Part Schematics Acquired . | . . . Parts Damaged . | . . . Bothacking | -11 -10 -10 ------------ Run | Yrd Mat Sub Used RIF Installer . | . . . Robots Hacked . | . . . Non-combat . | . . . Combat . | . . . Robot Hacks Applied . | . . . Relay Couplers Released . | . . . Fabnet Peak Effective % . | . . . Robots Rewired . | . . . Allies Hacked . | . . . Hacks Repelled . | . . . Allies | -11 -10 -10 -------- Run | Yrd Mat Sub Total Allies . | . . . Largest Group . | . . . Highest-Rated Group . | . . . Highest-Rated Ally . | . . . Total Orders . | . . . Ally Attacks . | . . . Total Damage . | . . . Kills . | . . . Allies Corrupted . | . . . Allies Melted . | . . . Intel | -11 -10 -10 ------- Run | Yrd Mat Sub Active Infowar (turns) . | . . . Robot Analysis Total . | . . . Derelict Logs Recovered 1 | . . 1 Drone Launches . | . . . Drone Recoveries . | . . . Exploration | -11 -10 -10 ------------- Run | Yrd Mat Sub Turns Passed 4603 | 346 1529 2728 Spaces Moved 2439 | 201 754 1484 Core 10 | 10 . . Treads 2429 | 191 754 1484 Legs . | . . . Wheels . | . . . Hover . | . . . Flight . | . . . Fastest Speed 50 | 50 160 160 Average Speed 159 | 154 160 160 Slowest Speed 160 | 160 160 160 Overloaded Moves . | . . . Propulsion Burnouts . | . . . Robots Hopped . | . . . Potential Cave-ins . | . . . Cave-ins Triggered . | . . . Exploration Rate (%) 61 | 13 93 78 Regions Visited 2 Branch Regions 1 Pre-discovered Areas 1 | . . 1 Known Exits Taken . | . . . Unknown Exits Taken 2 | 1 1 . Scrap Searched 4 | . . 4 Spaces Dug . | . . . Terrain Destroyed 67 | . . 67 Melee . | . . . Projectile . | . . . AOE 67 | . . 67 Terrain Rammed . | . . . Walls Destroyed . | . . . Machines Disabled . | . . . Actions | -11 -10 -10 --------- Run | Yrd Mat Sub Total 2923 | 227 965 1731 Wait 269 | 2 97 170 Move 2437 | 200 753 1484 Hop . | . . . Pick Up 34 | 13 21 . Fast Attach . | . . . Attach 10 | 6 4 . Detach . | . . . Swap 17 | . 9 8 Drop 21 | 1 17 3 Fire 135 | 5 64 66 Melee . | . . . Ram . | . . . Kick . | . . . Crush . | . . . Escape Stasis . | . . . Rewire . | . . . Trap . | . . . Miscellaneous . | . . . Route ------- -11/Scrapyard -10/Materials (discovered 4 exits: [*Mat x2] / [*Min] / *Sub) -10/Subcaves (discovered 3 exits: [*Mat x2] / [*Rec]) History --------- Turn | Location | Event 3 | -11/Scrapyard | Discovered new exit (range 14) 347 | -11/Scrapyard | Entered Materials 368 | -10/Materials | Build established: Mutant 768 | -10/Materials | Discovered new exit (range 14) 854 | -10/Materials | Discovered new exit (range 16) 1178 | -10/Materials | Repaired Lgt. Armor Plating 1629 | -10/Materials | Discovered new exit (range 5) 1775 | -10/Materials | Discovered new exit (range 11) 1876 | -10/Materials | Entered Subcaves 2524 | -10/Subcaves | Core integrity fell below 50% 2588 | -10/Subcaves | Learned 4 Materials zone layouts 2907 | -10/Subcaves | Visited 4L-MR0's lab 3575 | -10/Subcaves | Discovered new exit (range 15) 3680 | -10/Subcaves | A swath of the cavern ceiling suddenly collapsed 3857 | -10/Subcaves | Learned location of Zion (-7) 3857 | -10/Subcaves | Met a Zionite searching for "candidates" 4013 | -10/Subcaves | Shifting Twisted Machinery released Flamer 4015 | -10/Subcaves | Discovered new exit (range 6) 4021 | -10/Subcaves | Shifting Twisted Machinery released Mak. Light Armor Plating 4033 | -10/Subcaves | Discovered new exit (range 13) 4345 | -10/Subcaves | Shifting Twisted Machinery released Sub. Shrapnel Launcher 4351 | -10/Subcaves | Shifting Twisted Machinery released Shrapnel Trap 4374 | -10/Subcaves | A swath of the cavern ceiling suddenly collapsed 4486 | -10/Subcaves | Core integrity fell below 20% 4604 | -10/Subcaves | Destroyed by 5I-A8S(R) with Subdweller Laser Last Messages --------------- Machinery. A swath of the cavern ceiling suddenly collapses. 04421_ Subatomizers dissect the Sub. Power Source. 04507_ Hvy. Assault Rifle destroyed. 04538_ Sub. Optics melted. 04538_ G9-4V3(R) destroyed. 04540_ Acquired 56 matter. 04558_ Searching scrap... 04558_ Found Mak. Spear. 04558_ Found Riot Gun. 04558_ Found 43 Matter. 04559_ Acquired 43 matter. 04563_ Searching scrap... 04563_ Found Riot Gun. 04563_ Found 38 Matter. 04564_ Acquired 38 matter. 04600_ Subatomizers dissect the Disposable Heat Sink. Map ----- +----------------------------------------------------+ | ?????????????????????????????????????????????????? | | ?????????????????????????????????????????????????? | | ?????????????????????????????????????????????????? | | ?????????????????????????????????????????????????? | | ?????????????????????????????????????????????????? | | ?????????????????????????????????????????????????? | | ?????????????????????????????????????????????????? | | ?????????????????????????????????????????????????? | | ?????????????????????????????????????????????????? | | ?????????????????????????????????????????????????? | | ?????????????????????????????????????????????????? | | ?????????????????????????????????????????????????? | | ?????????????????????????????????????????????????? | | ?????????????????????????????????????????????????? | | ???????????????????????????????##????????????????? | | ???????????#######???????????## ##???????????????? | | ??????????## ## ####???????? #####???????????? | | ?????????## ####???? ???????????? | | ?????????# ###?? R & ???????????? | | ????????## ##?# ### R ]#????????????? | | ????????# ### #???????????????? | | ????????## ! ##??????????????? | | ??####?## #??????????????? | | ??#/ ### ## #??????????????? | | ??# [#$#" # ## ##??????????????? | | ??## ### @## #???????????????? | | ??# &"##" # # ##?## #?? #???????????????? | | ??#[ ## # #???## ?? #??????????????? | | ??######## ## #???## ?? #??????????????? | | ????????## # ### #????## ???##??????????????? | | ????##### # ##??##??????#####??????????????????? | | ????# """ ##?????????????????????????????????? | | ????#& ##????????????????????????????????? | | ????# " #????????????????????????????????? | | ????# ##???????????????????????????????? | | ????# " # #### ##??????????????????????????????? | | ????########??# #??????????????????????????????? | | ??????????????## #??????????????????????????????? | | ???????????????# ##??????????????????????????????? | | ???????????????# #???????????????????????????????? | | ???????????##### #???????????????????????????????? | | ???????????# #???????????????????????????????? | | ???????????#"] ##??????????????????????????????? | | ???????????## ## #??????????????????????????????? | | ???????????## #?????????####????###??????????? | | ???????#####" # #???????### ##???#"#??????????? | | ######## " ### ##?###### #####"##?????????? | | # # ## ### ### " "#"#"#?????????? | | # #= [ ## & ### "#"#### #?????? | | *! #?# ####"#### #?????? | +----------------------------------------------------+ Best States ------------- Heat Dissipation 25 Energy Generation 10 Energy Capacity 250 Matter Stores 300 Matter Capacity 300 Sight Range 16 Terrain Scan Density 10 Armor Coverage 150 Resistance: KI 20 Resistance: TH 20 Resistance: EX 20 Resistance: EM 20 Resistance: I 20 Resistance: S 20 Resistance: P 20 Evasion (%) 50 Targeting Accuracy 5 Recoil Reduction 2 Offensive Hacking 10 Item Schematics ----------------- None Robot Schematics ------------------ None Fabricated ------------ Nothing Repaired ---------- Lgt. Armor Plating | 35% | -10/Materials Alien Tech Used ----------------- None Achievements -------------- None Challenges ------------ None Game ------ Seed AngularHardenedPendant Manual? 1 Play Time 00:48:51 Cumulative 42.6 hours Start 2025.06.19 @ 11:36:05 End 2025.06.19 @ 18:46:09 Sessions 1 Manual Loads 0 Difficulty Adventurer Special Mode None Game No. 48 Rogue 19 Adventurer 22 Explorer 7 Win Type - Total 0 Types 0/0/0/0/0/0/0/0/0/0 Lore% 12 Gallery% 28 Achievement% 28 Wizard Run 0 Options --------- Layout 1 ASCII 0 Keyboard 0 Movement Mouse Keybinds 0 Fullscreen 0 Font 32/SmallcapsGlow Map View 50x35 Zoom Use 0% Tactical HUD 1 Map Filters NONE Filters NONE Steam 1 RUN: 0a654595-fdb0-41ac-a7bf-4f1afaa81e28